bitfinex-derivatives/quotes_ETHF0:USTF0_20250620
["timestamp","ask_amount","ask_price","bid_price","bid_amount"]
[1750441732541,0.82959,2410.6,2410.2,3.1547]
[1750441732737,0.82965,2410.4,2409.8,6.4932]
[1750441732932,3.2078,2410.4,2409.8,3.2078]
[1750441733238,3.2078,2410.4,2409.6,3.1547]
[1750441733642,4.03746,2410.4,2409.6,3.1547]
[1750441734138,0.82969,2410.3,2409.6,3.1547]
[1750441734338,3.1041,2410.3,2409.6,3.1547]
[1750441734738,0.82975,2410.2,2409.6,3.1547]
[1750441735245,3.1041,2410.3,2409.6,3.1547]
[1750441735441,3.2078,2409.7,2408.9,3.2078]
[1750441735746,3.2078,2409.7,2407.9,65.184]
[1750441735747,0.83009,2409.2,2408.8,3.2687]
[1750441735943,0.83012,2409.1,2408.8,3.2687]
[1750441736244,0.83012,2409.1,2408.6,3.2078]
[1750441736245,0.83013,2409.1,2408.6,3.2078]
[1750441736544,3.2078,2409.3,2408.6,6.4765]
[1750441736735,0.83014,2409.0,2408.6,6.4765]
[1750441736935,0.83012,2409.1,2408.6,6.4765]
[1750441737138,45.0838,2409.6,2408.6,6.4765]
[1750441737340,3.2078,2409.6,2408.6,6.4765]
[1750441737540,3.2078,2409.6,2408.9,3.2078]
[1750441737738,3.2078,2409.6,2409.0,3.3035]
[1750441738049,41.851,2409.9,2409.0,3.3035]
[1750441738343,3.2078,2409.4,2408.6,3.2078]
[1750441738543,0.83008,2409.2,2408.6,3.2078]
[1750441738746,3.2078,2409.0,2408.6,3.2078]
[1750441738950,0.83018,2408.9,2408.6,3.2078]
[1750441739148,36.57489989,2408.9,2408.2,3.3035]
[1750441739349,3.2078,2408.7,2408.0,3.2078]
[1750441739559,0.83031,2408.5,2408.2,3.2152]
[1750441739846,3.2078,2408.7,2408.2,3.2152]
[1750441740046,0.83018,2408.9,2408.2,3.2152]
[1750441740246,19.48246989,2408.5,2407.3,6.3842]
[1750441740447,21.55894989,2407.7,2406.7,3.2078]
[1750441740653,3.2078,2407.7,2406.8,3.29829788]
[1750441741046,34.50146989,2408.0,2407.0,3.2078]
[1750441741047,41.771,2407.9,2407.0,3.2078]
[1750441741252,3.2078,2408.2,2407.3,3.2078]
[1750441741451,0.83065,2407.5,2407.4,3.2152]
[1750441741652,24.76669989,2407.8,2406.8,3.29089788]
[1750441741856,3.2078,2407.5,2406.9,3.2152]
[1750441742053,3.2078,2407.2,2406.9,3.2152]
[1750441742251,0.83075,2407.3,2406.8,3.2078]
[1750441742457,0.83071,2407.4,2406.8,3.2078]
[1750441742752,0.83073,2407.3,2406.8,3.2078]
[1750441742952,0.83076,2407.2,2406.9,3.2517]
[1750441743154,3.2078,2407.4,2406.9,3.2517]
[1750441743362,0.83089,2406.9,2406.4,3.2517]
[1750441743560,3.2078,2407.0,2405.9,3.1764]
[1750441743855,22.69026989,2406.3,2405.8,3.2078]
[1750441744157,3.2078,2406.3,2405.8,3.2078]
[1750441744357,3.2078,2406.7,2405.9,3.2517]
[1750441744554,53.0218,2407.0,2405.9,3.2517]
[1750441744853,3.2078,2407.3,2406.9,3.2078]
[1750441745057,3.2078,2407.3,2407.0,3.2517]
[1750441745252,0.83079,2407.1,2407.0,3.2517]
[1750441745556,0.83081,2407.1,2406.5,3.2517]
[1750441745755,0.83088,2406.9,2406.5,3.2517]
[1750441745951,3.2078,2406.9,2406.5,3.2517]
[1750441746149,19.48246989,2406.8,2406.0,6.3695]
[1750441746350,19.48246989,2406.8,2403.1,5.73890955]
[1750441746351,34.51246989,2406.8,2405.9,3.2078]
[1750441746555,41.659,2406.7,2405.9,3.2078]
[1750441746853,41.659,2406.7,2406.0,3.3074]
[1750441747048,22.69026989,2406.8,2406.0,3.3074]
[1750441747260,37.72026989,2407.5,2406.5,3.2078]
[1750441747454,0.06933781,2407.7,2407.1,3.2078]
[1750441747656,0.06933781,2407.7,2407.2,3.3074]
[1750441747954,0.06933781,2407.7,2407.4,3.2078]
[1750441748150,0.06933781,2407.7,2407.5,3.3074]
[1750441748557,0.89992781,2407.7,2407.1,3.2078]
[1750441748757,0.06933781,2407.7,2407.5,3.2078]
[1750441749063,0.83069,2407.5,2407.1,3.1835]
[1750441749265,0.06933781,2407.7,2407.1,3.1835]
[1750441749472,0.06933781,2407.7,2407.6,3.2078]
[1750441749857,0.89994781,2407.7,2407.3,3.2078]
[1750441750053,0.06933781,2407.7,2407.6,3.2078]
[1750441750758,0.06933781,2407.7,2407.3,6.3913]
[1750441750957,0.06933781,2407.7,2407.6,3.2078]
[1750441751158,0.06933781,2407.7,2407.3,6.3913]
[1750441751561,0.06933781,2407.7,2407.6,3.2078]
[1750441751965,0.06933781,2407.7,2407.3,6.3913]
[1750441752863,2.07602,2408.3,2407.3,6.3913]
[1750441752864,0.83039,2408.3,2407.6,3.2078]
[1750441753060,3.2078,2408.4,2407.7,3.1732]
[1750441753266,0.83043,2408.2,2407.7,3.1732]
[1750441753468,22.69026989,2408.1,2407.6,3.2078]
[1750441753660,0.83062,2407.7,2407.3,6.381]
[1750441753861,3.1195,2408.0,2407.3,6.381]
[1750441754264,3.2078,2408.9,2407.4,19.48246989]
[1750441754462,0.83025,2408.7,2408.2,3.2078]
[1750441754662,3.2078,2408.6,2407.9,3.2078]
[1750441754866,25.97276989,2409.0,2407.9,3.2078]
[1750441755160,3.2078,2408.7,2408.2,3.2078]
[1750441755361,0.83024,2408.8,2408.3,3.1744]
[1750441755555,3.2078,2409.0,2408.3,3.1744]
[1750441755960,3.2078,2409.2,2408.3,3.1744]
[1750441756265,0.83007,2409.2,2408.5,3.2078]
[1750441756467,0.83012,2409.1,2408.6,3.1744]
[1750441756667,4.11254,2409.3,2408.6,3.1744]
[1750441756865,3.2078,2409.1,2408.6,3.1744]
[1750441757266,3.2825,2409.3,2408.6,3.1744]
[1750441757267,0.83004,2409.3,2408.6,3.1744]
[1750441757465,18.2398,2409.5,2408.6,3.1744]
[1750441757666,19.06978,2409.5,2408.6,3.1744]
[1750441757866,0.83001,2409.4,2408.6,3.1744]
[1750441758166,3.2078,2409.8,2408.8,3.2078]
[1750441758368,19.48246989,2410.8,2408.6,18.2044]
[1750441758369,3.2078,2410.2,2409.2,3.2078]
[1750441758568,3.2078,2410.2,2409.3,3.2393]
[1750441758766,6.2634,2410.7,2409.8,3.2078]
[1750441758972,0.82967,2410.4,2409.9,3.2393]
[1750441759166,0.82963,2410.5,2409.9,3.2393]
[1750441759369,3.2078,2410.7,2410.1,3.2078]
[1750441759568,3.2078,2411.0,2410.2,3.2393]
[1750441759763,0.82952,2410.8,2410.2,3.2393]
[1750441760067,3.2078,2411.0,2410.4,3.2078]
[1750441760265,3.2078,2411.0,2410.5,3.2393]
[1750441761971,3.1377,2411.7,2410.5,3.2393]
[1750441762177,3.2078,2411.5,2410.7,3.2078]
[1750441762373,3.2078,2411.5,2410.8,3.1755]
[1750441762575,6.3455,2411.5,2410.8,3.1755]
[1750441762775,0.82931,2411.4,2410.8,3.1755]
[1750441762976,7.1748,2411.5,2410.8,3.1755]
[1750441763372,6.3455,2411.5,2410.8,3.1755]
[1750441763581,0.82931,2411.4,2410.8,3.1755]
[1750441764082,6.3455,2411.5,2410.8,3.1755]
[1750441764278,0.82932,2411.4,2410.8,3.1755]
[1750441764480,0.82932,2411.4,2411.0,3.2078]
[1750441764675,6.3455,2411.5,2411.0,3.2078]
[1750441765079,3.1377,2411.5,2411.0,3.2078]
[1750441765286,3.2393,2412.0,2411.4,3.2078]
[1750441765484,3.2078,2411.9,2411.4,3.2078]
[1750441765680,3.2078,2411.6,2411.1,3.2078]
[1750441765980,3.2078,2411.6,2410.4,3.1721]
[1750441765981,0.82939,2411.2,2410.4,3.1721]
[1750441766182,0.82939,2411.2,2410.6,3.2078]
[1750441766484,0.82946,2411.0,2410.4,3.1721]
[1750441766780,0.82943,2411.1,2410.4,3.1721]
[1750441766983,0.82931,2411.4,2410.6,3.2078]
[1750441767184,6.3481,2411.5,2410.7,3.2129]
[1750441767388,0.82944,2411.1,2410.3,3.2078]
[1750441769485,3.97015,2409.9,2409.4,3.2078]
[1750441769779,3.2078,2410.5,2409.7,3.2078]
[1750441769981,44.2478,2410.9,2409.8,3.1913]
[1750441770187,0.82959,2410.6,2409.8,3.1913]
[1750441770382,0.82966,2410.4,2409.8,3.1913]
[1750441770581,3.89614,2410.5,2409.8,3.1913]
[1750441770781,3.0665,2410.5,2409.8,3.1913]
[1750441771182,3.2078,2410.3,2409.7,3.2078]
[1750441771377,3.2078,2410.3,2409.0,6.6553]
[1750441771378,3.2078,2410.3,2409.1,6.3991]
[1750441771577,58.6965,2410.2,2409.1,6.3991]
[1750441771886,0.82994,2409.6,2409.1,6.3991]
[1750441772087,0.83002,2409.4,2409.1,6.3991]
[1750441772284,3.0665,2409.5,2409.1,3.2078]
[1750441772492,0.06933781,2408.9,2408.5,19.48246989]
[1750441772788,0.82984,2409.9,2408.8,3.2078]
[1750441772976,0.82987,2409.8,2409.5,3.2078]
[1750441773489,0.82987,2409.8,2409.4,3.2078]
[1750441773684,2.07449,2410.0,2409.0,3.2078]
[1750441773991,3.2078,2409.3,2408.7,3.2078]
[1750441774182,0.83016,2409.0,2408.7,3.2078]
[1750441774384,0.8302,2408.8,2408.7,3.2078]
[1750441774585,0.83019,2408.9,2408.7,3.2078]
[1750441774788,40.921,2409.0,2408.7,3.2078]
[1750441775086,0.83017,2408.9,2408.7,3.2078]
[1750441775287,3.2684,2408.9,2408.7,3.2078]
[1750441775484,49.795,2409.4,2408.7,3.2078]
[1750441775687,0.82997,2409.5,2409.0,3.2078]
[1750441775886,3.2684,2409.8,2409.0,3.2078]
[1750441776086,3.2684,2409.8,2409.3,3.2078]
[1750441776392,40.889,2410.0,2409.3,3.2078]
[1750441776589,40.889,2410.0,2409.4,3.0855]
[1750441776788,3.2822,2409.9,2409.3,3.2078]
[1750441776988,0.82988,2409.8,2409.3,3.2078]
[1750441777290,0.83004,2409.3,2408.7,3.2078]
[1750441777493,0.83007,2409.2,2408.7,3.2078]
[1750441777692,0.83004,2409.3,2408.7,3.2078]
[1750441777889,3.2822,2409.5,2409.0,3.2078]
[1750441778089,41.67797,2409.5,2409.1,3.2078]
[1750441778294,41.67797,2409.5,2408.8,3.2078]
[1750441778489,3.2078,2409.6,2409.1,3.2078]
[1750441778688,40.832,2409.7,2409.2,3.0855]
[1750441778991,0.8299,2409.7,2409.2,3.0855]
[1750441779193,0.82993,2409.6,2409.2,3.0855]
[1750441779489,50.63277,2410.1,2409.5,3.2078]
[1750441779693,49.803,2410.1,2409.4,3.2078]
[1750441779896,14.637,2410.5,2409.8,3.2078]
[1750441780189,0.82959,2410.6,2409.8,3.2078]
[1750441780388,40.795,2410.5,2409.9,3.1645]
[1750441780690,3.2078,2410.1,2409.1,3.2078]
[1750441780994,0.83006,2409.3,2408.8,3.2078]
[1750441781185,40.776,2409.3,2408.8,3.2078]
[1750441781386,3.2078,2409.2,2408.8,3.2078]
[1750441781585,0.83015,2409.0,2408.8,3.2078]
[1750441781785,0.83017,2408.9,2408.8,3.2078]
[1750441781981,0.83016,2409.0,2408.8,3.2078]
[1750441782390,3.2078,2409.2,2408.8,3.2078]
[1750441782592,40.728,2409.5,2408.8,3.2078]
[1750441782984,0.83009,2409.2,2408.8,3.2078]
[1750441783292,0.83014,2409.0,2408.8,3.2078]
[1750441783486,0.83017,2408.9,2408.8,3.2078]
[1750441783686,0.83022,2408.8,2408.2,3.2078]
[1750441783886,44.061,2408.8,2408.2,3.2078]
[1750441784087,44.89123,2408.8,2408.2,3.2078]
[1750441784289,0.83024,2408.7,2408.2,3.2078]
[1750441784689,44.061,2408.8,2408.2,3.2078]
[1750441784890,3.364,2408.7,2408.2,3.2078]
[1750441785486,3.2078,2409.6,2408.6,3.2078]
[1750441785695,3.2078,2409.6,2408.9,3.2078]
[1750441785887,0.82998,2409.5,2409.0,3.1687]
[1750441786087,24.76509989,2409.6,2408.9,3.2078]
[1750441786295,3.1608,2409.5,2408.9,3.2078]
[1750441786498,3.2078,2409.3,2408.5,3.2078]
[1750441786693,40.632,2409.2,2408.6,3.1687]
[1750441786897,3.2078,2409.0,2408.6,3.1687]
[1750441787098,0.83018,2408.9,2408.6,3.1687]
[1750441787398,0.83019,2408.9,2408.6,3.1687]
[1750441787894,0.83021,2408.8,2408.6,3.1687]
[1750441788093,3.2078,2409.0,2408.6,3.1687]
[1750441788293,3.2078,2409.0,2408.9,0.83017]
[1750441788798,41.42509,2409.2,2409.0,0.83011]
[1750441788995,0.8301,2409.1,2408.9,0.83015]
[1750441789499,41.42509,2409.2,2409.0,0.83014]
[1750441789797,3.2078,2409.4,2408.7,2.07561]
[1750441789988,40.549,2409.3,2409.2,0.83004]
[1750441790192,40.549,2409.3,2409.0,3.3597]
[1750441790386,0.83008,2409.2,2409.0,0.83011]
[1750441790594,52.9951,2409.7,2409.3,0.83003]
[1750441790787,0.82987,2409.8,2409.7,0.82989]
[1750441790991,40.525,2410.0,2409.2,2.07517]
[1750441791196,0.82988,2409.8,2409.3,3.3597]
[1750441791391,3.2057,2409.9,2409.3,3.3597]
[1750441791597,3.2078,2410.4,2409.4,3.2078]
[1750441791896,0.82977,2410.1,2409.4,3.2078]
[1750441792291,0.8297,2410.3,2410.1,0.82974]
[1750441792495,0.8297,2410.3,2409.7,5.28249]
[1750441792697,40.487,2410.4,2409.9,2.07454]
[1750441792892,3.2078,2410.7,2410.1,2.0744]
[1750441793094,2.07397,2410.6,2410.0,3.1253]
[1750441793294,3.2078,2410.7,2410.0,3.1253]
[1750441793493,3.2078,2411.0,2410.4,3.2078]
[1750441793797,3.2078,2412.2,2410.7,3.2078]
[1750441793991,3.2078,2412.2,2411.3,2.07333]
[1750441794189,0.82908,2412.1,2411.6,3.2078]
[1750441794388,3.2078,2412.2,2411.7,3.319]
[1750441794594,3.2078,2412.5,2411.9,3.2078]
[1750441794795,3.2078,2412.5,2412.4,0.82897]
[1750441795097,3.2078,2412.5,2411.9,2.37883]
[1750441795399,22.69026989,2412.2,2411.0,3.2078]
[1750441795696,40.405,2412.1,2411.4,3.319]
[1750441795897,40.405,2412.1,2411.8,0.82915]
[1750441796094,3.2074,2412.4,2412.0,0.8291]
[1750441796295,0.82899,2412.4,2411.6,3.2078]
[1750441796490,3.2078,2412.5,2411.7,3.319]
[1750441796795,3.2078,2412.2,2411.9,0.82912]
[1750441796995,3.2078,2412.2,2411.7,3.319]
[1750441797501,3.2078,2412.6,2412.0,3.2078]
[1750441797696,3.2078,2413.2,2412.5,3.2078]
[1750441797895,3.2078,2413.6,2412.8,3.2078]
[1750441798096,6.5225,2414.0,2412.9,3.3265]
[1750441798297,0.8285,2413.8,2413.5,0.82857]
[1750441798692,3.2078,2414.0,2413.1,5.27962]
[1750441798903,8.72339442,2414.3,2412.4,23.62715989]
[1750441798904,3.2078,2414.3,2413.7,3.2078]
[1750441799099,3.2078,2414.3,2413.8,3.3265]
[1750441799403,4.03613,2414.3,2414.0,0.82839]
[1750441799604,0.8284,2414.1,2413.8,4.15496]
[1750441799805,3.2078,2414.3,2414.2,0.82835]
[1750441799995,3.29063974,2414.3,2413.8,3.3265]
[1750441800299,19.48246989,2414.1,2413.1,3.1597]
[1750441800493,2.07182,2413.1,2411.9,3.2078]
[1750441800695,22.69026989,2412.4,2411.6,3.2078]
[1750441800902,19.48246989,2412.1,2411.6,3.2078]
[1750441801102,5.16855,2412.0,2411.1,3.2078]
[1750441801398,3.2078,2411.2,2409.7,3.2078]
[1750441801605,3.2078,2410.2,2409.7,3.2078]
[1750441801796,3.2078,2410.2,2409.4,3.2078]
[1750441801993,22.69026989,2409.5,2408.8,6.4394]
[1750441802195,22.69026989,2409.5,2408.5,3.2078]
[1750441802196,3.2078,2409.1,2408.5,3.2078]
[1750441802391,3.2078,2409.1,2408.0,14.251]
[1750441802392,3.2078,2410.2,2409.0,3.2078]
[1750441802602,3.2078,2410.6,2409.2,22.69026989]
[1750441802811,3.2078,2411.0,2409.9,3.2078]
[1750441803002,4.03737,2410.7,2410.0,3.2316]
[1750441803198,3.2078,2410.7,2410.0,3.2316]
[1750441803500,3.2078,2411.1,2410.1,3.2078]
[1750441803697,3.2078,2411.1,2410.5,3.2078]
[1750441803896,3.2078,2411.1,2410.6,6.4306]
[1750441804405,3.2078,2411.8,2410.9,3.2078]
[1750441804614,3.2078,2412.1,2411.3,3.2078]
[1750441804907,50.6059,2412.6,2411.7,3.2078]
[1750441805106,49.777,2412.6,2412.0,3.2078]
[1750441805405,49.777,2412.6,2411.8,3.2228]
[1750441805406,3.3626,2413.0,2412.3,3.2078]
[1750441805609,3.2078,2413.7,2412.9,3.2078]
[1750441805804,3.2078,2414.0,2413.2,3.2078]
[1750441806005,0.82857,2413.6,2413.3,3.2228]
[1750441806304,26.04996989,2414.0,2413.3,3.2228]
[1750441806503,3.2078,2414.4,2413.6,3.2078]
[1750441806699,3.2078,2414.4,2414.0,3.2078]
[1750441806898,3.2078,2414.4,2413.8,3.2078]
[1750441807109,0.82823,2414.6,2414.1,3.2078]
[1750441807305,57.5578,2415.0,2414.4,3.2078]
[1750441807499,3.2078,2415.0,2414.2,3.2078]
[1750441807700,3.2078,2415.3,2414.6,3.2078]
[1750441807899,54.341,2415.5,2414.6,3.2078]
[1750441807900,14.252,2415.5,2415.1,0.82802]
[1750441808102,33.73446989,2415.5,2414.3,3.2078]
[1750441808302,19.48246989,2414.9,2414.1,3.372]
[1750441808505,3.2078,2414.6,2413.6,2.07138]
[1750441808705,3.2078,2414.6,2413.8,3.2078]
[1750441808908,3.2078,2414.2,2413.3,3.2835]
[1750441809209,3.2078,2413.9,2413.1,3.2078]
[1750441809509,0.82847,2413.9,2413.2,3.372]
[1750441809808,54.28,2414.4,2412.5,5.1625]
[1750441809809,3.2078,2413.6,2412.6,3.2078]
[1750441810009,3.2078,2413.4,2412.6,7.29948]
[1750441810215,3.2078,2413.2,2412.6,6.4706]
[1750441810409,3.2078,2413.2,2412.7,0.82886]
[1750441810604,3.2078,2413.2,2412.8,3.2628]
[1750441810905,3.2078,2412.9,2412.3,3.2078]
[1750441811106,14.246,2413.5,2412.6,3.2628]
[1750441811306,3.1683,2413.7,2412.0,16.31875]
[1750441811307,3.2078,2413.0,2412.0,3.2078]
[1750441811616,0.82869,2413.2,2412.7,0.82884]
[1750441811811,3.2078,2413.3,2412.9,0.82876]
[1750441812007,3.2078,2413.3,2412.5,3.2078]
[1750441812008,6.5864,2413.6,2413.0,3.2628]
[1750441812211,0.82875,2413.1,2412.6,0.82888]
[1750441812403,0.82875,2413.1,2412.6,4.09168]
[1750441812603,3.2078,2413.3,2412.6,3.2628]
[1750441812913,3.2078,2413.3,2412.8,0.82881]
[1750441812914,4.03648,2413.3,2412.8,0.82881]
[1750441813109,3.2078,2413.0,2412.0,3.2078]
[1750441813311,3.2078,2413.0,2412.4,5.28017]
[1750441813510,3.2078,2413.0,2412.9,0.82879]
[1750441813811,3.2078,2413.0,2412.5,3.1168]
[1750441814115,3.2078,2413.5,2413.4,0.82862]
[1750441814412,3.2078,2413.5,2412.6,3.2078]
[1750441814710,0.82869,2413.3,2412.9,0.82879]
[1750441814908,3.2078,2413.2,2412.7,0.82884]
[1750441815104,0.82874,2413.1,2412.7,3.94565]
[1750441815309,27.69026989,2413.2,2411.1,49.745]
[1750441815514,19.48246989,2412.6,2411.5,3.2078]
[1750441815707,60.6522,2412.5,2411.5,3.2078]
[1750441815907,0.82907,2412.1,2411.7,0.82917]
[1750441816214,3.2078,2411.9,2411.2,3.2078]
[1750441816511,3.2078,2412.7,2411.5,3.2078]
[1750441816713,3.2078,2413.6,2412.6,2.07221]
[1750441816913,3.2078,2413.6,2412.7,3.1902]
[1750441817108,19.48246989,2412.8,2411.5,3.2078]
[1750441817308,3.2078,2411.6,2411.4,0.8293]
[1750441817508,4.03694,2411.9,2411.5,0.82924]
[1750441817709,3.2078,2411.8,2411.5,0.82924]
[1750441817909,4.03697,2411.8,2411.5,0.82927]
[1750441818108,4.03697,2411.8,2411.5,0.82926]
[1750441818313,0.82922,2411.7,2411.1,3.2078]
[1750441818610,0.82932,2411.4,2411.1,3.1902]
[1750441818816,22.69026989,2411.5,2410.8,3.2078]
[1750441819017,3.2078,2411.5,2410.8,3.2078]
[1750441819710,0.82931,2411.4,2410.8,3.2078]
[1750441819911,4.0371,2411.5,2410.8,3.2078]
[1750441820510,0.82931,2411.4,2410.8,3.2078]
[1750441820707,3.2078,2411.5,2410.7,6.3512]
[1750441821113,0.82933,2411.4,2410.7,6.3512]
[1750441821312,3.2078,2411.5,2411.0,3.2078]
[1750441821516,3.2078,2411.5,2411.1,3.1434]
[1750441821815,3.2078,2411.5,2410.3,3.2078]
[1750441821816,5.28131,2411.2,2410.3,3.2078]
[1750441822112,0.82952,2410.8,2410.3,6.5287]
[1750441822317,0.82964,2410.5,2410.0,3.2078]
[1750441822519,3.2078,2410.6,2410.0,6.5287]
[1750441822717,0.82962,2410.5,2410.0,6.5287]
[1750441823017,4.03718,2411.2,2410.3,3.2078]
[1750441823311,4.03718,2411.2,2410.6,3.2078]
[1750441823312,3.2078,2411.2,2410.6,3.2078]
[1750441823619,4.0372,2411.2,2410.7,3.3209]
[1750441823816,0.82942,2411.1,2410.7,3.3209]
[1750441824016,3.2078,2410.9,2410.1,3.2078]
[1750441824717,3.2078,2410.5,2409.8,3.2078]
[1750441824921,4.03745,2410.5,2409.8,3.2078]
[1750441825119,0.82969,2410.3,2409.9,3.1042]
[1750441825314,3.2078,2410.3,2409.3,3.2078]
[1750441825517,0.82981,2410.0,2409.4,3.1042]
[1750441825712,3.2078,2409.9,2409.4,3.1042]
[1750441825918,6.5254,2409.9,2409.4,3.1042]
[1750441826115,0.82987,2409.8,2409.4,3.1042]
[1750441826313,3.2078,2409.9,2409.4,3.1042]
[1750441826516,40.51677,2410.1,2409.4,3.1042]
[1750441826718,39.687,2410.1,2409.4,3.1042]
[1750441826918,4.03764,2409.9,2409.4,3.1042]
[1750441827318,3.2078,2409.9,2409.3,3.2078]
[1750441827818,3.2623,2409.8,2408.9,3.2078]
[1750441828115,3.2078,2409.6,2408.9,3.2078]
[1750441828722,3.2078,2409.6,2408.6,3.2078]
[1750441828917,39.645,2409.7,2409.2,3.2078]
[1750441829121,0.82999,2409.5,2408.8,3.2078]
[1750441829323,0.82999,2409.5,2408.9,3.1983]
[1750441829527,0.82997,2409.5,2409.1,3.2078]
[1750441829721,4.03775,2409.6,2408.9,3.1983]
[1750441830121,0.83001,2409.4,2408.9,3.1983]
[1750441830322,3.2078,2409.6,2408.9,3.1983]
[1750441830622,0.83012,2409.1,2408.3,17.0848]
[1750441830920,0.83008,2409.2,2408.4,3.3672]
[1750441831128,0.83008,2409.2,2408.5,3.2078]
[1750441831327,3.2078,2409.3,2408.5,3.2078]
[1750441831530,0.83011,2409.1,2408.5,3.2078]
[1750441831826,0.83014,2409.0,2408.5,3.2078]
[1750441832024,3.2078,2409.0,2408.6,3.3672]
[1750441832621,42.7988,2409.4,2408.6,3.3672]
[1750441832927,3.2078,2410.6,2409.3,3.2078]
[1750441833227,0.82967,2410.4,2409.4,6.575]
[1750441833419,3.2078,2410.3,2409.4,6.575]
[1750441833620,3.2078,2410.0,2409.3,3.2078]
[1750441833827,3.2078,2409.6,2409.0,3.2078]
[1750441834025,3.2078,2409.3,2408.9,3.3503]
[1750441834226,3.2078,2409.3,2408.9,6.5581]
[1750441834426,3.2078,2409.3,2408.8,3.2078]
[1750441834916,4.03785,2409.3,2408.9,3.3503]
[1750441835116,3.3874,2409.5,2408.9,3.3503]
[1750441835316,7.38194,2409.9,2409.1,3.2078]
[1750441835529,6.5521,2409.9,2409.2,3.3503]
[1750441835930,0.82989,2409.8,2409.2,3.3503]
[1750441836423,0.8299,2409.8,2409.2,3.3503]
[1750441836627,0.82988,2409.8,2409.2,3.3503]
[1750441837019,0.82998,2409.5,2409.2,3.3503]
[1750441837226,4.03775,2409.6,2409.2,3.3503]
[1750441837423,0.82997,2409.5,2409.2,3.3503]
[1750441837625,3.2078,2409.6,2409.2,3.3503]
[1750441838924,4.03774,2409.6,2409.2,3.3503]
[1750441839228,4.03775,2409.6,2409.2,3.3503]
[1750441840025,0.82998,2409.5,2409.2,3.3503]
[1750441840427,3.2078,2409.6,2409.2,3.3503]
[1750441840830,4.03774,2409.6,2409.2,3.3503]
[1750441841022,4.03775,2409.6,2409.2,3.3503]
[1750441841422,3.2078,2409.6,2408.9,3.2078]
[1750441841632,0.83001,2409.4,2409.0,3.3594]
[1750441841828,0.83,2409.5,2409.0,3.3594]
[1750441842334,3.2078,2409.6,2409.0,3.3594]
[1750441842528,3.2078,2409.6,2409.1,3.2078]
[1750441842724,3.2078,2409.6,2409.2,3.3594]
[1750441842928,3.2078,2409.9,2409.2,3.3594]
[1750441843434,0.82992,2409.7,2409.2,3.3594]
[1750441843633,3.2078,2409.5,2409.2,3.3594]
[1750441843832,0.82992,2409.7,2409.2,3.3594]
[1750441844128,3.2078,2409.8,2409.3,3.2078]
[1750441844428,3.2078,2409.8,2409.4,3.2785]
[1750441844834,3.2078,2410.7,2409.6,17.20127018]
[1750441845031,3.2078,2410.7,2409.9,3.2078]
[1750441845241,5.2817,2410.7,2410.0,3.2785]
[1750441845430,0.82964,2410.5,2410.0,3.2785]
[1750441845630,0.82963,2410.5,2410.0,3.2785]
[1750441845830,3.2078,2410.4,2410.0,3.2785]
[1750441846134,0.82967,2410.4,2410.0,3.2785]
[1750441846436,8.56041,2410.7,2410.0,3.2785]
[1750441846437,0.82974,2410.2,2410.0,3.2785]
[1750441846638,3.2078,2410.3,2410.0,3.2785]
[1750441846639,4.03751,2410.3,2410.0,3.2785]
[1750441846939,4.0375,2410.3,2410.0,3.2785]
[1750441847132,0.82972,2410.2,2410.0,3.2785]
[1750441847338,4.03751,2410.3,2410.0,3.2785]
[1750441847532,0.82974,2410.2,2410.0,3.2785]
[1750441848238,4.03751,2410.3,2410.0,3.2785]
[1750441848432,0.82972,2410.2,2410.0,3.2785]
[1750441848833,3.2078,2410.3,2409.8,3.2078]
[1750441849039,0.82981,2410.0,2409.6,3.0892]
[1750441849338,8.44805,2410.3,2409.6,3.0892]
[1750441849737,0.82981,2410.0,2409.6,3.0892]
[1750441850032,0.82973,2410.2,2409.6,3.0892]
[1750441850240,3.2078,2410.6,2410.0,3.2078]
[1750441850532,3.2078,2411.0,2410.4,3.2078]
[1750441850731,2.07304,2411.7,2410.7,3.2078]
[1750441850732,3.2078,2411.7,2410.7,3.2078]
[1750441851035,22.85659173,2411.7,2410.8,3.0892]
[1750441851335,3.2078,2411.1,2410.4,3.2078]
[1750441851536,3.2078,2411.1,2410.5,5.16323]
[1750441851739,0.82948,2410.9,2410.8,0.82949]
[1750441852034,3.2078,2411.1,2411.0,0.82945]
[1750441852337,4.03721,2411.1,2411.0,0.82945]
[1750441852536,3.2078,2411.1,2411.0,0.82945]
[1750441852934,0.82945,2411.0,2410.9,0.82946]
[1750441853131,2.90319,2410.9,2410.3,3.2689]
[1750441853330,3.2078,2411.1,2410.3,8.55089]
[1750441853530,3.2078,2410.8,2410.3,3.2689]
[1750441853931,0.8296,2410.6,2410.3,3.2689]
[1750441854128,0.82957,2410.7,2410.3,3.2689]
[1750441854335,5.28138,2411.1,2410.3,3.2689]
[1750441854942,0.82929,2411.5,2411.3,0.82933]
[1750441855134,3.2078,2411.6,2411.0,3.2622]
[1750441855328,3.2078,2411.9,2411.0,3.2622]
[1750441855534,3.2078,2411.6,2411.0,3.2622]
[1750441855741,3.2078,2411.6,2411.5,0.82927]
[1750441855935,3.2078,2411.6,2411.0,6.47]
[1750441855936,8.2078,2411.6,2411.0,7.29942]
[1750441856140,3.1174,2411.5,2411.0,3.2622]
[1750441856335,0.82932,2411.4,2411.2,0.82935]
[1750441856543,0.82934,2411.3,2411.1,0.82939]